[Event "15th Golden Prague Rapid Open"]
[Site "Prague"]
[Date "2019.06.30"]
[Round "6.9"]
[White "Plesnivy, Martin"]
[Black "Barton, Milan"]
[Result "0-1"]
[ECO "D46"]
[WhiteElo "1803"]
[BlackElo "1763"]
[Annotator "NA"]
[PlyCount "96"]
[EventDate "2019.06.30"]
[EventType "swiss"]
[EventCountry "CZE"]
[SourceTitle "playchess.com"]
[Source "ChessBase"]
[SourceQuality "1"]
[TimeControl "720+3"]

1. d4 {[%emt 0:00:00]} d5 {[%emt 0:00:00]} 2. Nf3 {[%emt 0:00:02]} e6 {[%emt 0:00:01]} 3. c4 {[%emt 0:00:01]} c6 {[%emt 0:00:03]} 4. e3 {[%emt 0:00:01]} Nf6 {[%emt 0:00:02]} 5. Nc3 {[%emt 0:00:02]} Nbd7 {[%emt 0:00:02]} 6. Bd3 {[%emt 0:00:01]} Qa5 {[%emt 0:00:10]} 7. O-O {[%emt 0:00:08]} Qc7 {[%emt 0:00:05]} 8. e4 {[%emt 0:00:13]} dxe4 {[%emt 0:00:06]} 9. Nxe4 {[%emt 0:00:03]} Nxe4 {[%emt 0:00:02]} 10. Bxe4 {[%emt 0:00:02]} Nf6 {[%emt 0:00:01]} 11. Bc2 {[%emt 0:00:08]} Be7 {[%emt 0:00:09]} 12. Qd3 {[%emt 0:00:25]} h6 {[%emt 0:00:08]} 13. g3 {[%emt 0:00:13]} b6 {[%emt 0:00:02]} 14. Bf4 {[%emt 0:00:07]} Qd8 {[%emt 0:00:14]} 15. Ne5 {[%emt 0:00:21]} Bb7 {[%emt 0:00:07]} 16. Ba4 {[%emt 0:00:20]} O-O {[%emt 0:00:14]} 17. Bxc6 {[%emt 0:00:44]} Bxc6 {[%emt 0:00:22]} 18. Nxc6 {[%emt 0:00:02]} Qd7 {[%emt 0:00:01]} 19. Ne5 {[%emt 0:00:07]} Qb7 {[%emt 0:00:11]} 20. Qf3 {[%emt 0:00:25]} Qxf3 {[%emt 0:00:13]} 21. Nxf3 {[%emt 0:00:04]} Rac8 {[%emt 0:00:11]} 22. Rac1 {[%emt 0:00:12]} Ne4 {[%emt 0:00:18]} 23. Rfd1 {[%emt 0:00:19]} Rfd8 {[%emt 0:00:05]} 24. Kg2 {[%emt 0:00:26]} f6 {[%emt 0:00:15]} 25. Re1 {[%emt 0:00:18]} f5 {[%emt 0:00:18]} 26. Be3 {[%emt 0:00:30]} g5 {[%emt 0:00:08]} 27. Ne5 {[%emt 0:00:21]} Bb4 {[%emt 0:00:17]} 28. Red1 {[%emt 0:00:19]} Kg7 {[%emt 0:00:03]} 29. f3 {[%emt 0:00:20]} Nf6 {[%emt 0:09:39]} 30. Rh1 {[%emt 0:07:16]} Nd7 {[%emt 0:00:00]} 31. Nd3 {[%emt 0:00:00]} Be7 {[%emt 0:00:00]} 32. h4 {[%emt 0:00:00]} Bf6 {[%emt 0:00:00]} 33. hxg5 {[%emt 0:00:00]} hxg5 {[%emt 0:00:00]} 34. Rh5 {[%emt 0:00:00]} Kg6 {[%emt 0:00:00]} 35. Rh2 {[%emt 0:00:00]} Nf8 {[%emt 0:00:00]} 36. Ne5+ {[%emt 0:00:00]} Kg7 {[%emt 0:00:00]} 37. f4 {[%emt 0:00:00]} g4 {[%emt 0:00:00]} 38. b3 {[%emt 0:00:00]} Ng6 {[%emt 0:00:00]} 39. Rch1 {[%emt 0:00:00]} Rh8 {[%emt 0:00:00]} 40. Rxh8 {[%emt 0:00:00]} Nxh8 {[%emt 0:00:00]} 41. Rd1 {[%emt 0:00:00]} Nf7 {[%emt 0:00:00]} 42. Nxf7 {[%emt 0:00:00]} Kxf7 {[%emt 0:00:00]} 43. d5 {[%emt 0:00:00]} Ke7 {[%emt 0:00:00]} 44. dxe6 {[%emt 0:00:00]} Kxe6 {[%emt 0:00:00]} 45. Bc1 {[%emt 0:00:00]} Bc3 {[%emt 0:00:00]} 46. Ba3 {[%emt 0:00:00]} Rc6 {[%emt 0:00:00]} 47. Rd8 {[%emt 0:00:00]} Bf6 {[%emt 0:00:00]} 48. Kf2 {[%emt 0:00:00]} Bxd8 {[%emt 0:00:00]} 0-1

[Event "15th Golden Prague Rapid Open"]
[Site "Prague"]
[Date "2019.06.30"]
[Round "6.10"]
[White "Harasta, Frantisek"]
[Black "Franc, Lubor"]
[Result "1/2-1/2"]
[ECO "A16"]
[WhiteElo "1567"]
[BlackElo "1788"]
[Annotator "NA"]
[PlyCount "84"]
[EventDate "2019.06.30"]
[EventType "swiss"]
[EventCountry "CZE"]
[SourceTitle "playchess.com"]
[Source "ChessBase"]
[SourceQuality "1"]
[TimeControl "720+3"]

1. c4 {[%emt 0:00:01]} Nf6 {[%emt 0:00:00]} 2. Nc3 {[%emt 0:00:02]} g6 {[%emt 0:00:01]} 3. g3 {[%emt 0:00:04]} Bg7 {[%emt 0:00:04]} 4. Bg2 {[%emt 0:00:02]} c6 {[%emt 0:00:02]} 5. Nf3 {[%emt 0:00:33]} d6 {[%emt 0:00:07]} 6. O-O {[%emt 0:00:36]} O-O {[%emt 0:00:15]} 7. d3 {[%emt 0:00:13]} Bd7 {[%emt 0:00:26]} 8. Bd2 {[%emt 0:00:03]} Qc8 {[%emt 0:00:03]} 9. Qc1 {[%emt 0:00:37]} Bh3 {[%emt 0:00:07]} 10. Bh6 {[%emt 0:00:34]} Bxg2 {[%emt 0:00:18]} 11. Kxg2 {[%emt 0:00:02]} Nbd7 {[%emt 0:00:11]} 12. h4 {[%emt 0:00:10]} Ne5 {[%emt 0:01:15]} 13. Nxe5 {[%emt 0:00:15]} dxe5 {[%emt 0:00:01]} 14. Qg5 {[%emt 0:00:13]} Qf5 {[%emt 0:00:40]} 15. Qxf5 {[%emt 0:00:59]} gxf5 {[%emt 0:00:02]} 16. Bxg7 {[%emt 0:00:20]} Kxg7 {[%emt 0:00:01]} 17. b4 {[%emt 0:00:14]} Rfd8 {[%emt 0:00:59]} 18. a4 {[%emt 0:00:18]} e4 {[%emt 0:00:23]} 19. dxe4 {[%emt 0:00:28]} Nxe4 {[%emt 0:00:05]} 20. Nxe4 {[%emt 0:00:06]} fxe4 {[%emt 0:00:02]} 21. Rfd1 {[%emt 0:00:02]} f5 {[%emt 0:00:08]} 22. Kf1 {[%emt 0:00:15]} e5 {[%emt 0:00:44]} 23. Ke1 {[%emt 0:00:04]} h5 {[%emt 0:00:13]} 24. Ra2 {[%emt 0:00:18]} Rxd1+ {[%emt 0:00:10]} 25. Kxd1 {[%emt 0:00:02]} Rd8+ {[%emt 0:00:00]} 26. Rd2 {[%emt 0:00:01]} Rd4 {[%emt 0:00:00]} 27. f4 {[%emt 0:00:55]} exf3 {[%emt 0:00:00]} 28. exf3 {[%emt 0:00:03]} b6 {[%emt 0:01:58]} 29. Ke2 {[%emt 0:00:41]} c5 {[%emt 0:00:57]} 30. bxc5 {[%emt 0:00:20]} bxc5 {[%emt 0:00:01]} 31. Rb2 {[%emt 0:00:03]} Rxc4 {[%emt 0:00:19]} 32. Rb7+ {[%emt 0:00:02]} Kf6 {[%emt 0:00:01]} 33. Rxa7 {[%emt 0:00:06]} Ke6 {[%emt 0:00:20]} 34. a5 {[%emt 0:00:12]} Ra4 {[%emt 0:00:06]} 35. a6 {[%emt 0:00:15]} Kd5 {[%emt 0:00:10]} 36. Rd7+ {[%emt 0:00:04]} Kc6 {[%emt 0:00:01]} 37. Rf7 {[%emt 0:00:04]} Rxa6 {[%emt 0:00:14]} 38. Rxf5 {[%emt 0:00:02]} Kd5 {[%emt 0:00:07]} 39. f4 {[%emt 0:00:19]} Ra2+ {[%emt 0:01:20]} 40. Ke3 {[%emt 0:00:07]} Ra3+ {[%emt 0:00:02]} 41. Kf2 {[%emt 0:00:05]} Ra2+ {[%emt 0:00:01]} 42. Ke3 {[%emt 0:00:05]} Ra3+ {[%emt 0:00:00]} 1/2-1/2

[Event "15th Golden Prague Rapid Open"]
[Site "Prague"]
[Date "2019.06.30"]
[Round "7.1"]
[White "Jirovsky, Pavel"]
[Black "Nedoma, Marek"]
[Result "1/2-1/2"]
[ECO "E18"]
[WhiteElo "2322"]
[BlackElo "1984"]
[Annotator "NA"]
[PlyCount "131"]
[EventDate "2019.06.30"]
[EventType "swiss"]
[EventCountry "CZE"]
[SourceTitle "playchess.com"]
[Source "ChessBase"]
[SourceQuality "1"]
[TimeControl "720+3"]

1. d4 {[%emt 0:00:00]} Nf6 {[%emt 0:00:00]} 2. Nf3 {[%emt 0:00:00]} e6 {[%emt 0:00:02]} 3. g3 {[%emt 0:00:02]} d5 {[%emt 0:00:02]} 4. Bg2 {[%emt 0:00:01]} Be7 {[%emt 0:00:03]} 5. O-O {[%emt 0:00:03]} O-O {[%emt 0:12:08]} 6. c4 b6 {[%emt 0:00:00]} 7. cxd5 {[%emt 0:00:12]} exd5 {[%emt 0:00:00]} 8. Nc3 {[%emt 0:00:02]} Bb7 {[%emt 0:00:00]} 9. Bf4 {[%emt 0:00:02]} Bd6 {[%emt 0:00:00]} 10. Be5 {[%emt 0:00:37]} Bxe5 {[%emt 0:00:00]} 11. dxe5 {[%emt 0:00:02]} Ne4 {[%emt 0:00:00]} 12. Nxe4 {[%emt 0:00:09]} dxe4 {[%emt 0:00:00]} 13. Qxd8 {[%emt 0:00:01]} Rxd8 {[%emt 0:00:00]} 14. Ng5 {[%emt 0:00:04]} Nd7 {[%emt 0:00:00]} 15. Nxe4 {[%emt 0:01:40]} Nxe5 {[%emt 0:00:00]} 16. Rfd1 {[%emt 0:00:02]} Bxe4 {[%emt 0:00:00]} 17. Bxe4 {[%emt 0:00:03]} Rab8 {[%emt 0:00:00]} 18. f4 {[%emt 0:00:37]} Ng4 {[%emt 0:00:00]} 19. Bf3 {[%emt 0:00:06]} Ne3 {[%emt 0:00:00]} 20. Rxd8+ {[%emt 0:00:06]} Rxd8 {[%emt 0:00:00]} 21. b3 {[%emt 0:01:04]} c5 {[%emt 0:00:00]} 22. Kf2 {[%emt 0:00:09]} Nd1+ {[%emt 0:00:00]} 23. Ke1 {[%emt 0:00:15]} Ne3 {[%emt 0:00:00]} 24. Rc1 {[%emt 0:00:05]} Kf8 {[%emt 0:00:00]} 25. Rc3 {[%emt 0:00:30]} Nf5 {[%emt 0:00:00]} 26. e3 {[%emt 0:00:14]} Ke7 {[%emt 0:00:00]} 27. Ke2 {[%emt 0:00:19]} h6 {[%emt 0:00:00]} 28. g4 {[%emt 0:00:04]} Nd6 {[%emt 0:00:00]} 29. Rd3 {[%emt 0:00:33]} c4 {[%emt 0:00:00]} 30. bxc4 {[%emt 0:00:24]} Nxc4 {[%emt 0:00:00]} 31. Rxd8 {[%emt 0:00:11]} Kxd8 {[%emt 0:00:00]} 32. Kd3 {[%emt 0:00:04]} Nd6 {[%emt 0:00:00]} 33. Kd4 {[%emt 0:00:04]} Kd7 {[%emt 0:00:00]} 34. Be2 {[%emt 0:00:56]} Nc8 {[%emt 0:00:00]} 35. e4 {[%emt 0:00:14]} Ne7 {[%emt 0:00:00]} 36. Bb5+ {[%emt 0:00:07]} Kd6 {[%emt 0:00:00]} 37. e5+ {[%emt 0:00:02]} Kc7 {[%emt 0:00:00]} 38. f5 {[%emt 0:00:31]} f6 {[%emt 0:00:00]} 39. h3 {[%emt 0:00:14]} Kb7 {[%emt 0:00:19]} 40. Be8 {[%emt 0:00:47]} Kc7 {[%emt 0:00:06]} 41. Ke4 {[%emt 0:00:30]} a6 {[%emt 0:00:30]} 42. h4 {[%emt 0:00:25]} b5 {[%emt 0:00:10]} 43. Kd4 {[%emt 0:00:50]} Kd8 {[%emt 0:00:02]} 44. exf6 {[%emt 0:00:14]} Kxe8 {[%emt 0:00:17]} 45. fxe7 {[%emt 0:00:02]} Kxe7 {[%emt 0:00:00]} 46. g5 {[%emt 0:00:15]} hxg5 {[%emt 0:00:18]} 47. hxg5 {[%emt 0:00:02]} Kd6 {[%emt 0:00:00]} 48. Ke4 {[%emt 0:00:13]} a5 {[%emt 0:00:02]} 49. Kd4 {[%emt 0:00:02]} b4 {[%emt 0:00:02]} 50. Kc4 {[%emt 0:00:08]} Ke5 {[%emt 0:00:03]} 51. f6 {[%emt 0:00:08]} gxf6 {[%emt 0:00:01]} 52. gxf6 {[%emt 0:00:01]} Kxf6 {[%emt 0:00:01]} 53. Kb5 {[%emt 0:00:01]} Ke5 {[%emt 0:00:03]} 54. Kxa5 {[%emt 0:00:02]} Kd6 {[%emt 0:00:03]} 55. Kxb4 {[%emt 0:00:02]} Kc6 {[%emt 0:00:00]} 56. Ka5 {[%emt 0:00:02]} Kb7 {[%emt 0:00:01]} 57. Kb5 {[%emt 0:00:01]} Ka7 {[%emt 0:00:01]} 58. Kc6 {[%emt 0:00:01]} Kb8 {[%emt 0:00:01]} 59. Kb6 {[%emt 0:00:01]} Ka8 {[%emt 0:00:01]} 60. a4 {[%emt 0:00:01]} Kb8 {[%emt 0:00:00]} 61. Ka6 {[%emt 0:00:01]} Ka8 {[%emt 0:00:47]} 62. a5 Kb8 {[%emt 0:00:00]} 63. Kb6 {[%emt 0:00:01]} Ka8 {[%emt 0:00:00]} 64. a6 {[%emt 0:00:03]} Kb8 {[%emt 0:00:00]} 65. a7+ {[%emt 0:00:01]} Ka8 {[%emt 0:00:00]} 66. Ka6 {[%emt 0:00:01]} 1/2-1/2

[Event "15th Golden Prague Rapid Open"]
[Site "Prague"]
[Date "2019.06.30"]
[Round "7.2"]
[White "Kiss, Pal"]
[Black "Rydl, Jiri"]
[Result "0-1"]
[ECO "D46"]
[WhiteElo "2278"]
[BlackElo "2422"]
[Annotator "NA"]
[PlyCount "88"]
[EventDate "2019.06.30"]
[EventType "swiss"]
[EventCountry "CZE"]
[SourceTitle "playchess.com"]
[Source "ChessBase"]
[SourceQuality "1"]
[TimeControl "720+3"]

1. d4 {[%emt 0:00:00]} Nf6 {[%emt 0:00:00]} 2. c4 {[%emt 0:00:01]} c6 {[%emt 0:00:03]} 3. Nc3 {[%emt 0:00:03]} d5 {[%emt 0:00:01]} 4. e3 {[%emt 0:00:03]} e6 {[%emt 0:00:02]} 5. Nf3 {[%emt 0:00:02]} Nbd7 {[%emt 0:00:04]} 6. Qc2 {[%emt 0:00:02]} Bd6 {[%emt 0:00:05]} 7. Bd3 {[%emt 0:00:03]} O-O {[%emt 0:00:06]} 8. O-O {[%emt 0:00:02]} h6 {[%emt 0:00:18]} 9. b3 {[%emt 0:00:25]} b6 {[%emt 0:00:02]} 10. Bb2 {[%emt 0:00:27]} Bb7 {[%emt 0:00:03]} 11. Rad1 {[%emt 0:00:14]} Qc7 {[%emt 0:00:28]} 12. Rfe1 {[%emt 0:00:46]} Rad8 {[%emt 0:00:18]} 13. h3 {[%emt 0:01:06]} Rfe8 {[%emt 0:02:12]} 14. e4 {[%emt 0:00:55]} dxc4 {[%emt 0:00:54]} 15. bxc4 {[%emt 0:03:25]} e5 {[%emt 0:00:04]} 16. c5 {[%emt 0:00:46]} Bf8 {[%emt 0:02:03]} 17. dxe5 {[%emt 0:00:45]} Nh5 {[%emt 0:00:07]} 18. cxb6 {[%emt 0:00:15]} axb6 {[%emt 0:00:27]} 19. Nb5 {[%emt 0:01:32]} Qb8 {[%emt 0:00:01]} 20. Nd6 {[%emt 0:00:01]} Nxe5 {[%emt 0:01:26]} 21. Nxe5 {[%emt 0:00:36]} Bxd6 {[%emt 0:01:57]} 22. Nxc6 {[%emt 0:00:08]} Bxc6 {[%emt 0:00:02]} 23. Qxc6 {[%emt 0:00:01]} Rc8 {[%emt 0:01:29]} 24. Qb5 {[%emt 0:00:03]} Bc5 {[%emt 0:00:13]} 25. Bf1 {[%emt 0:00:15]} Qf4 {[%emt 0:00:13]} 26. Qe2 {[%emt 0:00:14]} Rxe4 {[%emt 0:00:16]} 27. Qf3 {[%emt 0:00:22]} Qxf3 {[%emt 0:00:05]} 28. gxf3 {[%emt 0:00:01]} Rxe1 {[%emt 0:00:02]} 29. Rxe1 {[%emt 0:00:01]} Nf4 {[%emt 0:00:05]} 30. Be5 {[%emt 0:00:14]} Ng6 {[%emt 0:00:02]} 31. Bg3 {[%emt 0:00:09]} Bd4 {[%emt 0:00:02]} 32. Bd3 {[%emt 0:00:06]} Rc3 {[%emt 0:00:10]} 33. Bxg6 {[%emt 0:00:06]} fxg6 {[%emt 0:00:01]} 34. Kg2 {[%emt 0:00:13]} Rc2 {[%emt 0:00:03]} 35. a4 {[%emt 0:00:03]} g5 {[%emt 0:00:03]} 36. Re4 {[%emt 0:00:03]} Bc5 {[%emt 0:00:02]} 37. f4 {[%emt 0:00:07]} gxf4 {[%emt 0:00:08]} 38. Rxf4 {[%emt 0:00:00]} Ra2 {[%emt 0:00:06]} 39. Rc4 {[%emt 0:00:02]} Kf7 {[%emt 0:00:02]} 40. h4 {[%emt 0:00:02]} Ke6 {[%emt 0:00:05]} 41. h5 {[%emt 0:00:03]} Kd5 {[%emt 0:00:02]} 42. Rg4 {[%emt 0:00:01]} Bd4 {[%emt 0:00:01]} 43. Kf3 {[%emt 0:00:19]} Rxa4 {[%emt 0:00:03]} 44. Bf4 {[%emt 0:00:06]} Be5 {[%emt 0:00:07]} 0-1

[Event "15th Golden Prague Rapid Open"]
[Site "Prague"]
[Date "2019.06.30"]
[Round "7.3"]
[White "Netusil, Miloslav"]
[Black "Ralis, Petr"]
[Result "0-1"]
[ECO "E94"]
[WhiteElo "2189"]
[BlackElo "2207"]
[Annotator "NA"]
[PlyCount "104"]
[EventDate "2019.06.30"]
[EventType "swiss"]
[EventCountry "CZE"]
[SourceTitle "playchess.com"]
[Source "ChessBase"]
[SourceQuality "1"]
[TimeControl "720+3"]

1. d4 {[%emt 0:00:00]} Nf6 {[%emt 0:12:03]} 2. c4 d6 {[%emt 0:00:00]} 3. Nc3 {[%emt 0:00:03]} g6 {[%emt 0:00:00]} 4. e4 {[%emt 0:00:01]} Bg7 {[%emt 0:00:00]} 5. Be2 {[%emt 0:00:02]} Nbd7 {[%emt 0:00:00]} 6. Nf3 {[%emt 0:00:12]} e5 {[%emt 0:00:00]} 7. O-O {[%emt 0:00:02]} exd4 {[%emt 0:00:00]} 8. Nxd4 {[%emt 0:00:02]} O-O {[%emt 0:00:00]} 9. f3 {[%emt 0:00:08]} c6 {[%emt 0:00:00]} 10. Be3 {[%emt 0:00:03]} Re8 {[%emt 0:00:00]} 11. Qd2 {[%emt 0:00:01]} Nb6 {[%emt 0:00:00]} 12. Rad1 {[%emt 0:00:17]} d5 {[%emt 0:00:00]} 13. cxd5 {[%emt 0:00:18]} cxd5 {[%emt 0:00:00]} 14. Nb3 {[%emt 0:00:01]} Be6 {[%emt 0:00:00]} 15. Bb5 {[%emt 0:00:05]} Rf8 {[%emt 0:00:00]} 16. Bc5 {[%emt 0:00:09]} Qc7 {[%emt 0:00:00]} 17. Bxf8 {[%emt 0:00:36]} Kxf8 {[%emt 0:00:00]} 18. Nd4 {[%emt 0:00:31]} Rd8 {[%emt 0:00:00]} 19. Nxe6+ {[%emt 0:00:13]} fxe6 {[%emt 0:00:00]} 20. Qf2 {[%emt 0:00:19]} Nh5 {[%emt 0:00:00]} 21. Rc1 {[%emt 0:00:39]} d4 {[%emt 0:00:00]} 22. Na4 {[%emt 0:00:36]} Qe5 {[%emt 0:00:00]} 23. Nc5 {[%emt 0:00:24]} Nf4 {[%emt 0:00:00]} 24. Nd3 {[%emt 0:00:32]} Nh3+ {[%emt 0:00:00]} 25. gxh3 {[%emt 0:00:02]} Qxb5 {[%emt 0:00:00]} 26. Rcd1 {[%emt 0:00:01]} Nc4 {[%emt 0:00:00]} 27. f4 {[%emt 0:00:41]} Ne3 {[%emt 0:00:00]} 28. f5 {[%emt 0:00:35]} Nxd1 {[%emt 0:00:00]} 29. Qh4 {[%emt 0:00:06]} Ke8 {[%emt 0:00:00]} 30. f6 {[%emt 0:00:12]} Bf8 {[%emt 0:00:00]} 31. Rxd1 {[%emt 0:00:48]} Qh5 {[%emt 0:00:00]} 32. Qxh5 {[%emt 0:01:52]} gxh5 {[%emt 0:00:00]} 33. Rc1 {[%emt 0:00:06]} Kf7 {[%emt 0:00:00]} 34. e5 {[%emt 0:00:11]} Kg6 {[%emt 0:00:00]} 35. Kf2 {[%emt 0:00:07]} Kf5 {[%emt 0:00:00]} 36. Ke2 {[%emt 0:00:02]} Ke4 {[%emt 0:00:00]} 37. Rc7 {[%emt 0:00:08]} b6 {[%emt 0:00:00]} 38. h4 {[%emt 0:00:14]} Bh6 {[%emt 0:00:00]} 39. Rc6 {[%emt 0:00:01]} Rg8 {[%emt 0:00:00]} 40. Rxe6 {[%emt 0:00:07]} Rg2+ {[%emt 0:00:00]} 41. Kf1 {[%emt 0:00:10]} Rxh2 {[%emt 0:00:00]} 42. f7 {[%emt 0:00:05]} Bf8 {[%emt 0:00:00]} 43. Nf2+ {[%emt 0:00:03]} Ke3 {[%emt 0:00:00]} 44. Nd1+ {[%emt 0:00:03]} Kd2 {[%emt 0:00:00]} 45. Re8 {[%emt 0:00:01]} Bc5 {[%emt 0:00:21]} 46. e6 {[%emt 0:00:40]} Rxh4 {[%emt 0:00:14]} 47. Nf2 {[%emt 0:00:08]} Rf4 {[%emt 0:00:05]} 48. Rd8 {[%emt 0:00:20]} Ke3 {[%emt 0:00:03]} 49. b4 {[%emt 0:00:34]} Rxf2+ {[%emt 0:01:41]} 50. Kg1 Bxb4 {[%emt 0:00:00]} 51. Rd7 {[%emt 0:00:07]} Rf6 {[%emt 0:00:00]} 52. Rxa7 {[%emt 0:00:23]} Rxe6 {[%emt 0:00:00]} 0-1

[Event "15th Golden Prague Rapid Open"]
[Site "Prague"]
[Date "2019.06.30"]
[Round "7.4"]
[White "Rehak, Martin"]
[Black "Burdik, Lubomir"]
[Result "1/2-1/2"]
[ECO "B12"]
[WhiteElo "2071"]
[BlackElo "2132"]
[Annotator "NA"]
[PlyCount "20"]
[EventDate "2019.06.30"]
[EventType "swiss"]
[EventCountry "CZE"]
[SourceTitle "playchess.com"]
[Source "ChessBase"]
[SourceQuality "1"]
[TimeControl "720+3"]

1. e4 {[%emt 0:12:03]} c6 {[%emt 0:12:03]} 2. d4 {[%emt 0:00:03]} d5 {[%emt 0:00:03]} 3. e5 c5 {[%emt 0:00:03]} 4. Nf3 {[%emt 0:00:06]} Bg4 {[%emt 0:00:03]} 5. dxc5 {[%emt 0:00:03]} Nc6 {[%emt 0:00:03]} 6. c3 {[%emt 0:00:03]} e6 {[%emt 0:00:03]} 7. Be3 {[%emt 0:00:03]} Bxf3 {[%emt 0:00:03]} 8. Qxf3 {[%emt 0:00:03]} Nxe5 {[%emt 0:00:03]} 9. Bb5+ {[%emt 0:00:03]} Nc6 {[%emt 0:00:03]} 10. Nd2 {[%emt 0:00:03]} Nf6 {[%emt 0:00:03]} 1/2-1/2

[Event "15th Golden Prague Rapid Open"]
[Site "Prague"]
[Date "2019.06.30"]
[Round "7.5"]
[White "Benes, Petr"]
[Black "Plicka, Petr"]
[Result "1-0"]
[ECO "D74"]
[WhiteElo "2103"]
[BlackElo "1781"]
[Annotator "NA"]
[PlyCount "63"]
[EventDate "2019.06.30"]
[EventType "swiss"]
[EventCountry "CZE"]
[SourceTitle "playchess.com"]
[Source "ChessBase"]
[SourceQuality "1"]
[TimeControl "720+3"]

1. g3 {[%emt 0:00:01]} Nf6 {[%emt 0:00:02]} 2. Bg2 {[%emt 0:00:02]} d5 {[%emt 0:00:01]} 3. Nf3 {[%emt 0:00:03]} g6 {[%emt 0:00:03]} 4. O-O {[%emt 0:00:08]} Bg7 {[%emt 0:00:01]} 5. c4 {[%emt 0:00:06]} O-O {[%emt 0:00:17]} 6. cxd5 {[%emt 0:00:04]} Nxd5 {[%emt 0:00:01]} 7. d4 {[%emt 0:00:16]} c6 {[%emt 0:00:41]} 8. e4 {[%emt 0:00:15]} Nf6 {[%emt 0:00:18]} 9. Nc3 {[%emt 0:00:04]} Na6 {[%emt 0:00:14]} 10. h3 {[%emt 0:00:26]} Qb6 {[%emt 0:00:33]} 11. a3 {[%emt 0:00:44]} Be6 {[%emt 0:00:18]} 12. b4 {[%emt 0:00:07]} Rad8 {[%emt 0:00:19]} 13. Be3 {[%emt 0:01:00]} Qc7 {[%emt 0:00:54]} 14. Bf4 {[%emt 0:00:19]} Qc8 {[%emt 0:00:08]} 15. Kh2 {[%emt 0:00:07]} Bc4 {[%emt 0:01:04]} 16. Re1 {[%emt 0:00:03]} Nh5 {[%emt 0:00:11]} 17. Be3 {[%emt 0:00:23]} e5 {[%emt 0:00:09]} 18. Rc1 {[%emt 0:00:24]} exd4 {[%emt 0:00:16]} 19. Nxd4 {[%emt 0:01:10]} b5 {[%emt 0:01:00]} 20. g4 {[%emt 0:02:28]} Qc7+ {[%emt 0:00:14]} 21. Kh1 {[%emt 0:00:25]} Nf4 {[%emt 0:00:13]} 22. Bf1 {[%emt 0:01:01]} Bxf1 {[%emt 0:01:41]} 23. Rxf1 {[%emt 0:00:02]} Qe5 {[%emt 0:00:48]} 24. Qf3 {[%emt 0:00:13]} Nd3 {[%emt 0:01:36]} 25. Nxc6 {[%emt 0:00:05]} Qe8 {[%emt 0:00:13]} 26. Nxd8 {[%emt 0:00:11]} Nxc1 {[%emt 0:00:06]} 27. Rxc1 {[%emt 0:00:03]} Qxd8 {[%emt 0:00:11]} 28. Nd5 {[%emt 0:00:01]} Qd7 {[%emt 0:00:32]} 29. Qf4 {[%emt 0:00:09]} Qe6 {[%emt 0:00:11]} 30. Rc6 {[%emt 0:00:09]} Be5 {[%emt 0:01:02]} 31. Rxe6 {[%emt 0:00:06]} Bxf4 {[%emt 0:00:16]} 32. Rxa6 {[%emt 0:00:06]} 1-0

[Event "15th Golden Prague Rapid Open"]
[Site "Prague"]
[Date "2019.06.30"]
[Round "7.6"]
[White "Hozda, Max"]
[Black "Kalousek, Zdenek"]
[Result "0-1"]
[ECO "D93"]
[WhiteElo "1695"]
[BlackElo "2005"]
[Annotator "NA"]
[PlyCount "64"]
[EventDate "2019.06.30"]
[EventType "swiss"]
[EventCountry "CZE"]
[SourceTitle "playchess.com"]
[Source "ChessBase"]
[SourceQuality "1"]
[TimeControl "720+3"]

1. d4 {[%emt 0:00:00]} Nf6 {[%emt 0:00:00]} 2. c4 {[%emt 0:00:00]} g6 {[%emt 0:00:00]} 3. Nc3 {[%emt 0:00:01]} d5 {[%emt 0:00:01]} 4. Nf3 {[%emt 0:00:02]} c6 {[%emt 0:00:01]} 5. Bf4 {[%emt 0:00:01]} Bg7 {[%emt 0:00:01]} 6. e3 {[%emt 0:00:02]} O-O {[%emt 0:00:03]} 7. Bd3 {[%emt 0:00:02]} dxc4 {[%emt 0:00:11]} 8. Bxc4 {[%emt 0:00:01]} Nd5 {[%emt 0:00:02]} 9. Bg3 {[%emt 0:00:12]} Bg4 {[%emt 0:00:25]} 10. O-O {[%emt 0:00:08]} Nb6 {[%emt 0:00:37]} 11. Bb3 {[%emt 0:00:09]} N8d7 {[%emt 0:00:17]} 12. h3 {[%emt 0:00:04]} Bxf3 {[%emt 0:01:04]} 13. Qxf3 {[%emt 0:00:05]} e5 {[%emt 0:00:11]} 14. dxe5 {[%emt 0:00:13]} Nxe5 {[%emt 0:00:02]} 15. Bxe5 {[%emt 0:11:45]} Bxe5 {[%emt 0:09:50]} 16. Rad1 {[%emt 0:00:00]} Qf6 {[%emt 0:00:00]} 17. Qxf6 {[%emt 0:00:00]} Bxf6 {[%emt 0:00:00]} 18. Rd3 {[%emt 0:00:00]} Rfd8 {[%emt 0:00:00]} 19. Rfd1 {[%emt 0:00:00]} Rxd3 {[%emt 0:00:00]} 20. Rxd3 {[%emt 0:00:00]} Kf8 {[%emt 0:00:00]} 21. Rd2 {[%emt 0:00:00]} a5 {[%emt 0:00:00]} 22. a4 {[%emt 0:00:00]} Bxc3 {[%emt 0:00:00]} 23. bxc3 {[%emt 0:00:00]} Ke7 {[%emt 0:00:00]} 24. Kf1 {[%emt 0:00:00]} f6 {[%emt 0:00:00]} 25. Ke2 {[%emt 0:00:00]} Nd7 {[%emt 0:00:00]} 26. Rd4 {[%emt 0:00:00]} Nc5 {[%emt 0:00:00]} 27. Bc2 {[%emt 0:00:00]} b5 {[%emt 0:00:00]} 28. f3 {[%emt 0:00:00]} Rb8 {[%emt 0:00:00]} 29. axb5 {[%emt 0:00:00]} cxb5 {[%emt 0:00:00]} 30. Kd2 {[%emt 0:00:00]} Ne6 {[%emt 0:00:00]} 31. Rd5 {[%emt 0:00:00]} Nc7 {[%emt 0:00:00]} 32. Rc5 {[%emt 0:00:00]} Kd6 {[%emt 0:00:00]} 0-1